bitfinex-derivatives/quotes_ETHF0:USTF0_20250417
["timestamp","ask_amount","ask_price","bid_price","bid_amount"]
[1744904504667,2.93699,1585.7,1585.6,2.08837]
[1744904504864,4.47873598,1585.8,1585.7,1.26149]
[1744904505164,4.47873598,1585.8,1585.7,2.99119]
[1744904505465,3.21727598,1585.8,1585.7,2.99119]
[1744904505765,0.00947598,1585.8,1585.7,2.99119]
[1744904506967,1.27089598,1585.8,1585.7,2.99119]
[1744904507361,0.00947598,1585.8,1585.7,2.99119]
[1744904508466,6.23215598,1585.8,1585.7,1.26149]
[1744904508769,0.00947598,1585.8,1585.7,2.95609]
[1744904510268,1.27089598,1585.8,1585.7,2.95609]
[1744904511265,0.00947598,1585.8,1585.7,2.95609]
[1744904511470,1.27089598,1585.8,1585.7,2.95609]
[1744904512158,0.00947598,1585.8,1585.7,2.95609]
[1744904512871,1.27089598,1585.8,1585.7,2.95609]
[1744904513177,2.92929598,1585.8,1585.7,1.6946]
[1744904513369,1.26149,1585.7,1585.6,2.08837]
[1744904513568,2.88799,1585.7,1585.6,0.8268]
[1744904513770,2.88799,1585.7,1585.6,1.26157]
[1744904515470,1.6265,1585.7,1585.6,1.26157]
[1744904515671,1.27095598,1585.8,1585.7,1.26149]
[1744904516069,2.89745598,1585.8,1585.7,1.26149]
[1744904516974,1.26149,1585.7,1585.6,2.99421]
[1744904517175,4.46929,1585.7,1585.6,2.99421]
[1744904517376,1.26149,1585.7,1585.6,2.99421]
[1744904517775,1.26157,1585.6,1585.5,5.856]
[1744904517976,1.7142,1585.6,1585.5,8.75159]
[1744904518371,2.97577,1585.6,1585.5,11.95939]
[1744904518570,2.97577,1585.6,1585.5,8.75159]
[1744904518771,2.97577,1585.6,1585.5,2.89559]
[1744904520382,1.7142,1585.6,1585.5,2.89559]
[1744904520572,2.97577,1585.6,1585.5,2.89559]
[1744904521373,1.26165,1585.5,1585.4,2.14175598]
[1744904521675,3.02855,1585.5,1585.4,2.14175598]
[1744904521875,3.02855,1585.5,1585.4,3.84535598]
[1744904522068,3.02855,1585.5,1585.4,7.05315598]
[1744904522268,3.02855,1585.5,1585.4,0.88007598]
[1744904525287,3.02855,1585.5,1585.4,2.14180598]
[1744904525479,2.14014,1585.6,1585.5,1.26165]
[1744904525680,3.01774,1585.6,1585.5,2.86655]
[1744904526082,3.01774,1585.6,1585.5,1.6049]
[1744904526679,1.26165,1585.5,1585.4,2.14175598]
[1744904526879,3.01775,1585.5,1585.4,2.14175598]
[1744904527181,3.01775,1585.5,1585.4,0.88007598]
[1744904527388,7.07655,1585.5,1585.4,0.88007598]
[1744904528078,12.07655,1585.5,1585.4,0.00947598]
[1744904528474,7.07655,1585.5,1585.4,0.00947598]
[1744904528679,16.78255,1585.5,1585.4,0.00947598]
[1744904528880,17.29985,1585.5,1585.4,0.00947598]
[1744904530977,17.29985,1585.5,1585.0,0.003]
[1744904530978,1.26197,1585.1,1585.0,0.003]
[1744904531181,1.26205,1585.0,1584.9,12.39671363]
[1744904531481,4.41145,1585.0,1584.9,12.39671363]
[1744904532186,9.41145,1585.0,1584.9,12.39671363]
[1744904532489,1.26213,1584.9,1584.8,0.00947598]
[1744904532688,10.81563,1584.9,1584.8,0.00947598]
[1744904532991,6.10963,1584.9,1584.8,1.27168598]
[1744904533290,6.10963,1584.9,1584.8,2.93738598]
[1744904533790,4.46993,1584.9,1584.8,2.93738598]
[1744904534882,4.46993,1584.9,1584.8,1.67517598]
[1744904535388,4.46993,1584.9,1584.8,0.00947598]
[1744904535786,4.46993,1584.9,1584.8,1.62887598]
[1744904536685,5.30983,1584.9,1584.8,1.62887598]
[1744904538294,5.30983,1584.9,1584.8,0.00947598]
[1744904539795,15.01383,1584.9,1584.8,5.98e-06]
[1744904539993,15.53183,1584.9,1584.8,5.98e-06]
[1744904540197,17.15713,1584.9,1584.8,5.98e-06]
[1744904547800,12.15713,1584.9,1584.8,5.98e-06]
[1744904551003,6.93513,1584.9,1584.8,5.98e-06]
[1744904551303,10.80123,1584.9,1584.8,5.98e-06]
[1744904551495,6.09523,1584.9,1584.8,0.80610598]
[1744904552106,4.46993,1584.9,1584.8,0.80610598]
[1744904553101,6.24413,1584.9,1584.8,0.80610598]
[1744904553800,4.46993,1584.9,1584.8,0.80610598]
[1744904554002,6.24413,1584.9,1584.8,0.80610598]
[1744904556902,1.26229,1584.7,1584.6,0.8616]
[1744904557199,1.26237,1584.6,1584.5,1.6117]
[1744904557398,2.86537,1584.6,1584.5,1.6117]
[1744904557594,1.26253,1584.4,1584.3,0.8851]
[1744904557797,1.26253,1584.4,1584.3,2.4968]
[1744904558602,1.26261,1584.3,1584.2,0.00947598]
[1744904558797,10.46041,1584.3,1584.2,5.98e-06]
[1744904559102,6.24711,1584.3,1584.2,5.98e-06]
[1744904559302,11.24711,1584.3,1584.2,5.98e-06]
[1744904560202,11.24711,1584.3,1584.0,5.98e-06]
[1744904560203,1.26277,1584.1,1584.0,5.98e-06]
[1744904560507,9.17657,1584.1,1584.0,5.98e-06]
[1744904560700,14.17657,1584.1,1584.0,5.98e-06]
[1744904560907,15.95327,1584.1,1584.0,5.98e-06]
[1744904561203,10.95327,1584.1,1584.0,5.98e-06]
[1744904565717,16.94327,1584.1,1584.0,5.98e-06]
[1744904571414,1.26285,1584.0,1583.9,1.96e-06]
[1744904571615,2.95845,1584.0,1583.9,1.96e-06]
[1744904580521,8.94845,1584.0,1583.9,1.96e-06]
[1744904582323,8.94845,1584.0,1583.9,5.00000196]
[1744904583017,8.94845,1584.0,1583.9,1.96e-06]
[1744904584525,13.94845,1584.0,1583.9,1.96e-06]
[1744904586133,8.94845,1584.0,1583.9,1.96e-06]
[1744904592239,13.65245,1584.0,1583.9,1.96e-06]
[1744904592748,8.94845,1584.0,1583.9,1.96e-06]
[1744904592937,13.65245,1584.0,1583.9,1.96e-06]
[1744904594649,11.95685,1584.0,1583.9,1.96e-06]
[1744904603461,18.2430587,1584.0,1583.9,1.96e-06]
[1744904607261,22.35020908,1584.0,1583.9,1.96e-06]
[1744904610664,20.40093408,1584.0,1583.9,1.96e-06]
[1744904610864,1.26341,1583.3,1583.2,12.72288408]
[1744904611266,1.26341,1583.3,1583.2,17.72288408]
[1744904613165,1.26341,1583.3,1583.2,16.45940408]
[1744904613367,1.26341,1583.3,1583.2,17.72289408]
[1744904614259,1.27286598,1583.4,1583.3,1.26341]
[1744904614963,1.27286598,1583.4,1583.3,6.26341]
[1744904615866,1.26325,1583.6,1583.5,1.26325]
[1744904616064,1.26333,1583.5,1583.4,1.26326]
[1744904616264,1.26333,1583.5,1583.4,6.26326]
[1744904616463,1.26322,1583.6,1583.5,1.26317]
[1744904616863,6.33367725,1583.7,1583.6,1.26317]
[1744904617366,6.34315323,1583.7,1583.6,6.26317]
[1744904617561,0.00947598,1583.7,1583.6,6.26317]
[1744904617761,0.00947598,1583.7,1583.6,10.96217]
[1744904619167,0.00947598,1583.7,1583.6,16.81817]
[1744904619370,6.33367725,1584.0,1583.9,1.26293]
[1744904619968,7.59660725,1584.0,1583.9,6.26293]
[1744904620165,6.33367725,1584.0,1583.9,15.32673]
[1744904620369,6.33367725,1584.0,1583.9,60.82473]
[1744904620762,1.27224598,1584.1,1584.0,1.26285]
[1744904620964,1.26285,1584.0,1583.9,52.61686]
[1744904621271,1.26301,1583.8,1583.7,9.16883]
[1744904621770,1.26301,1583.8,1583.7,54.96883]
[1744904622275,1.26299,1583.9,1583.8,1.26297]
[1744904622475,1.26301,1583.8,1583.7,9.16883]
[1744904622977,1.26301,1583.8,1583.7,14.16883]
[1744904623577,1.263,1583.9,1583.8,1.26297]
[1744904624777,1.26301,1583.8,1583.7,9.16882]
[1744904626180,1.26301,1583.8,1583.7,3.2078]
[1744904626477,1.26301,1583.8,1583.7,4.47089]
[1744904626782,1.26301,1583.8,1583.7,3.2078]
[1744904627480,1.26301,1583.8,1583.7,4.47089]
[1744904627680,1.26301,1583.8,1583.7,3.2078]
[1744904627979,1.26301,1583.8,1583.7,4.47089]
[1744904628781,1.26301,1583.9,1583.8,1.26296]
[1744904631183,1.26301,1583.8,1583.7,4.47082]
[1744904631884,1.26301,1583.8,1583.6,9.01392]
[1744904631885,1.26309,1583.7,1583.6,7.11912]
[1744904632087,1.26309,1583.7,1583.6,1.26312]
[1744904632484,1.26309,1583.7,1583.6,4.47092]
[1744904632782,1.26309,1583.7,1583.6,1.26312]
[1744904632982,1.26309,1583.7,1583.6,4.47092]
[1744904633572,1.26309,1583.7,1583.6,1.26312]
[1744904633982,1.26309,1583.7,1583.6,4.47092]
[1744904634985,1.26309,1583.7,1583.6,1.26312]
[1744904635283,1.26309,1583.7,1583.6,4.47092]
[1744904635582,3.15774,1583.7,1583.4,17.31540408]
[1744904635883,1.26325,1583.5,1583.4,11.45940408]
[1744904636187,1.26325,1583.5,1583.4,12.72273408]
[1744904636689,6.36534,1583.8,1583.4,16.45940408]
[1744904636878,1.26315,1583.7,1583.6,1.2631]
[1744904637887,1.26315,1583.7,1583.6,4.4709]
[1744904639795,1.26302,1583.9,1583.8,1.26297]
[1744904639994,1.26302,1583.9,1583.8,4.47077]
[1744904640292,1.26305,1583.8,1583.7,1.26301]
[1744904640489,1.26309,1583.7,1583.6,9.16293]
[1744904641397,1.26309,1583.7,1583.6,12.44003]
[1744904641698,1.26309,1583.7,1583.6,7.74803]
[1744904642092,1.26309,1583.7,1583.6,3.2771]
[1744904642401,6.26309,1583.7,1583.6,3.2771]
[1744904643099,6.26309,1583.7,1583.6,1.85584804]
[1744904643390,1.26309,1583.7,1583.6,1.85584804]
[1744904648996,6.26309,1583.7,1583.6,1.85584804]
[1744904649192,7.96399,1583.7,1583.6,1.85584804]
[1744904649997,2.96399,1583.7,1583.6,1.85584804]
[1744904650298,1.26341,1583.3,1583.2,5.856]
[1744904650501,1.26341,1583.3,1583.2,1.26349]
[1744904651597,1.26341,1583.3,1583.2,3.81899]
[1744904652102,1.26341,1583.3,1583.2,2.5555]
[1744904652505,1.26341,1583.3,1583.2,3.81899]
[1744904653598,1.26341,1583.3,1583.2,3.4345]
[1744904654900,6.26341,1583.3,1583.2,3.4345]
[1744904655104,8.00071,1583.3,1583.2,3.4345]
[1744904656003,3.00071,1583.3,1583.2,3.4345]
[1744904656207,12.68671,1583.3,1583.2,3.4345]
[1744904656401,7.68671,1583.3,1583.2,3.4345]
[1744904658008,7.68671,1583.3,1583.2,1.63781]
[1744904658207,1.26349,1583.2,1583.1,9.87e-06]
[1744904658409,4.47129,1583.2,1583.1,9.87e-06]
[1744904658611,9.47129,1583.2,1583.1,9.87e-06]
[1744904658809,1.26357,1583.1,1583.0,9.87e-06]
[1744904659212,6.26357,1583.1,1583.0,9.87e-06]
[1744904661410,1.26365,1583.0,1582.9,5.85e-06]
[1744904661607,9.15845,1583.0,1582.9,5.85e-06]
[1744904661809,14.15845,1583.0,1582.9,5.85e-06]
[1744904662112,9.15845,1583.0,1582.9,5.85e-06]
[1744904662314,14.15845,1583.0,1582.9,5.85e-06]
[1744904662512,9.15845,1583.0,1582.9,5.85e-06]
[1744904664610,9.15845,1583.0,1582.9,0.80420585]
[1744904665313,5.95065,1583.0,1582.9,0.80420585]
[1744904665615,2.90505,1583.0,1582.9,0.80420585]
[1744904666015,2.90505,1583.0,1582.9,2.06793585]
[1744904666502,2.90505,1583.0,1582.9,1.72080585]
[1744904666703,6.11285,1583.0,1582.9,0.80420585]
[1744904667501,6.11285,1583.0,1582.9,5.85e-06]
[1744904669912,7.76675,1583.0,1582.9,5.85e-06]
[1744904670715,12.76675,1583.0,1582.9,5.85e-06]
[1744904671612,7.76675,1583.0,1582.9,5.85e-06]
[1744904672109,12.45475,1583.0,1582.9,5.85e-06]
[1744904677622,17.45475,1583.0,1582.9,5.85e-06]
[1744904679021,12.45475,1583.0,1582.9,5.85e-06]
[1744904684331,6.11285,1583.0,1582.9,5.85e-06]
[1744904684627,6.11285,1583.0,1582.9,1.26373585]
[1744904684824,6.11285,1583.0,1582.9,5.85e-06]
[1744904685025,6.11285,1583.0,1582.9,2.18023585]
[1744904685629,6.11285,1583.0,1582.9,0.91650585]
[1744904686133,4.47145,1583.0,1582.9,2.18023585]
[1744904686534,1.26365,1583.0,1582.9,2.18023585]
[1744904686726,1.26365,1583.0,1582.9,7.18023585]
[1744904686934,1.26361,1583.1,1583.0,1.26357]
[1744904687133,1.27296598,1583.2,1583.1,1.26357]
[1744904687428,1.27296598,1583.2,1583.1,3.01057]
[1744904687628,1.27296598,1583.2,1583.1,8.01057]
[1744904687829,1.27296598,1583.2,1583.1,6.747]
[1744904688230,1.27296598,1583.2,1583.1,8.01057]
[1744904689428,1.27296598,1583.2,1583.1,3.01057]
[1744904691627,0.00947598,1583.2,1583.1,3.01057]
[1744904691828,1.27296598,1583.2,1583.1,3.01057]
[1744904692933,0.00947598,1583.2,1583.1,8.01057]
[1744904695233,1.27296598,1583.2,1583.1,3.01057]
[1744904695628,0.00947598,1583.2,1583.1,3.01057]
[1744904696127,1.77017598,1583.2,1583.1,3.01057]
[1744904697433,3.03366598,1583.2,1583.1,3.01057]
[1744904698738,3.03366598,1583.2,1583.1,2.09377]
[1744904700334,3.2078,1583.4,1583.3,1.26341]
[1744904700533,4.47113,1583.4,1583.3,1.26341]
[1744904701039,1.26341,1583.3,1583.2,1.26342]
[1744904701239,3.00291,1583.3,1583.2,1.26342]
[1744904701543,1.26349,1583.2,1583.1,2.0937]
[1744904701834,2.98159,1583.2,1583.1,2.0937]
[1744904702242,1.7181,1583.2,1583.1,3.01]
[1744904702442,2.98159,1583.2,1583.1,3.01]
[1744904702843,2.98159,1583.2,1583.1,6.2178]
[1744904703046,1.7181,1583.2,1583.1,3.01]
[1744904703344,1.7181,1583.2,1583.1,6.2178]
[1744904704738,1.27287598,1583.4,1583.3,1.26341]
[1744904704936,2.99507598,1583.4,1583.3,1.26341]
[1744904705445,1.73167598,1583.4,1583.3,1.26341]
[1744904705744,2.99500598,1583.4,1583.3,2.05951]
[1744904705945,1.26349,1583.3,1583.2,1.26344]
[1744904706250,1.26349,1583.2,1583.1,3.8061]
[1744904706540,1.7222,1583.2,1583.1,3.8061]
[1744904706742,1.7222,1583.2,1583.1,12.0139]
[1744904706941,2.98569,1583.2,1583.1,12.0139]
[1744904707443,1.7222,1583.2,1583.1,3.8061]
[1744904707640,2.98569,1583.2,1583.1,3.8061]
[1744904707847,2.98569,1583.2,1583.1,2.8898]
[1744904708147,1.7222,1583.2,1583.1,2.8898]
[1744904708360,2.98569,1583.2,1583.1,7.0135]
[1744904708761,2.98569,1583.2,1583.1,2.0937]
[1744904709059,1.26357,1583.1,1583.0,1.26465]
[1744904709259,2.91477,1583.1,1583.0,2.08665]
[1744904709857,1.6512,1583.1,1583.0,2.08665]
[1744904710053,1.26346,1583.3,1583.2,1.26349]
[1744904710256,1.6512,1583.3,1583.2,1.26349]
[1744904710858,2.91461,1583.3,1583.2,1.26349]
[1744904711357,1.26349,1583.2,1583.1,9.1523]
[1744904711657,2.93629,1583.2,1583.1,4.681]
[1744904711864,2.93629,1583.2,1583.1,1.26357]
[1744904712056,1.26357,1583.1,1583.0,2.08662]
[1744904712252,3.82667,1583.1,1583.0,0.001]
[1744904712457,4.62817,1583.1,1583.0,1.26465]
[1744904713366,1.6728,1583.1,1583.0,1.26465]
[1744904713865,1.6728,1583.1,1583.0,2.97815]
[1744904719268,2.13295598,1583.4,1583.1,3.15892]
[1744904719463,2.13295598,1583.4,1583.3,1.26341]
[1744904719661,0.86957598,1583.4,1583.3,1.26341]
[1744904719861,1.26341,1583.3,1583.2,2.14792]
[1744904720262,1.26341,1583.3,1583.2,1.26342]
[1744904720771,2.94751,1583.3,1583.2,1.26342]
[1744904721167,1.6841,1583.3,1583.2,1.26342]
[1744904721563,1.6841,1583.3,1583.2,5.93642]
[1744904722063,2.94751,1583.3,1583.2,5.93642]
[1744904722266,1.6841,1583.3,1583.2,5.93642]
[1744904723375,2.94751,1583.3,1583.2,5.93642]
[1744904724174,1.6841,1583.3,1583.2,5.93642]
[1744904727078,1.6841,1583.3,1583.2,6.85372]
[1744904727772,1.6841,1583.3,1583.2,5.93642]
[1744904728877,1.26349,1583.2,1583.1,1.2635]
[1744904729076,0.8241,1583.2,1583.1,1.2635]
[1744904729276,2.4694,1583.2,1583.1,1.2635]
[1744904731075,1.6453,1583.2,1583.1,2.0845]
[1744904731281,1.6453,1583.2,1583.1,1.2635]
[1744904731487,2.90879,1583.2,1583.1,1.2635]
[1744904733992,1.6453,1583.2,1583.1,1.2635]
[1744904734984,0.00947598,1583.4,1583.3,1.26341]
[1744904735186,0.00947598,1583.4,1583.3,9.14421]
[1744904735492,0.00947598,1583.4,1583.3,10.03271]
[1744904735889,1.27280598,1583.4,1583.3,9.14421]
[1744904736489,1.27280598,1583.4,1583.3,4.47121]
[1744904736885,0.00947598,1583.4,1583.3,4.47121]
[1744904737386,0.8463,1583.6,1583.5,1.26325]
[1744904737590,6.33367725,1583.7,1583.6,1.26317]
[1744904738389,7.97847725,1583.7,1583.6,1.26317]
[1744904739687,6.33367725,1583.7,1583.6,1.26317]
[1744904739991,6.33367725,1583.7,1583.6,2.88227]
[1744904740585,6.33367725,1583.7,1583.6,3.37522914]
[1744904740786,1.70207598,1583.8,1583.7,1.26309]
[1744904740985,1.70207598,1583.8,1583.7,5.93609]
[1744904745991,1.70207598,1583.8,1583.7,6.77099]
[1744904746194,1.70207598,1583.8,1583.7,8.49049]
[1744904746490,1.70207598,1583.8,1583.7,9.28709]
[1744904746793,1.70207598,1583.8,1583.7,50.08709]
[1744904747790,1.70207598,1583.8,1583.7,49.29049]
[1744904747997,2.96508598,1583.8,1583.7,5.93609]
[1744904748192,2.96508598,1583.8,1583.7,4.673]
[1744904748389,1.26309,1583.7,1583.6,5.856]
[1744904748590,2.90469,1583.7,1583.6,5.856]
[1744904749298,2.90469,1583.7,1583.6,7.11917]
[1744904749507,2.90469,1583.7,1583.6,5.856]
[1744904749698,2.90469,1583.7,1583.6,7.11917]
[1744904750698,2.90469,1583.7,1583.6,1.26317]
[1744904756498,1.6416,1583.7,1583.6,1.26317]
[1744904756700,2.90469,1583.7,1583.6,1.26317]
[1744904758101,1.26317,1583.6,1583.5,1.26322]
[1744904758304,1.26325,1583.5,1583.4,45.27106]
[1744904758507,1.2634,1583.4,1583.2,11.89771396]
[1744904758707,1.26341,1583.3,1583.2,13.16113396]
[1744904758904,1.26341,1583.3,1583.2,7.62773396]
[1744904759104,1.26341,1583.3,1583.2,7.11942]
[1744904759302,1.6202,1583.3,1583.1,4.665]
[1744904759504,1.26357,1583.1,1583.0,9.51623408]
[1744904759905,4.47137,1583.1,1583.0,8.25260408]
[1744904760113,6.17387,1583.1,1583.0,8.25260408]
[1744904760609,11.17387,1583.1,1583.0,8.25260408]
[1744904761813,4.9103,1583.1,1583.0,9.51625408]
[1744904762018,3.2078,1583.1,1583.0,9.51625408]
[1744904762209,3.2078,1583.1,1583.0,11.28905408]
[1744904762515,3.2078,1583.1,1583.0,1.26465]
[1744904762715,4.9103,1583.1,1583.0,1.26465]
[1744904762915,1.7025,1583.1,1583.0,1.26465]
[1744904763311,2.96607,1583.1,1583.0,1.26465]
[1744904763613,2.96607,1583.1,1583.0,0.001]
[1744904763813,2.96607,1583.1,1583.0,1.26465]
[1744904764214,1.7025,1583.1,1583.0,1.26465]
[1744904764721,2.96607,1583.1,1583.0,1.26465]
[1744904764923,6.17387,1583.1,1583.0,0.001]
[1744904765321,2.96607,1583.1,1583.0,0.001]
[1744904765519,4.9103,1583.1,1583.0,1.26465]
[1744904766225,6.17387,1583.1,1583.0,1.26465]
[1744904769223,6.17387,1583.1,1583.0,0.001]
[1744904770930,6.17387,1583.1,1583.0,1.26465]
[1744904772232,6.17387,1583.1,1583.0,0.001]
[1744904773226,6.17387,1583.1,1583.0,1.26465]
[1744904774528,6.17387,1583.1,1583.0,0.001]
[1744904775226,1.26365,1583.0,1582.9,5.85e-06]
[1744904775525,2.94645,1583.0,1582.9,5.85e-06]
[1744904778232,3.75065,1583.0,1582.9,5.85e-06]
[1744904779938,3.75065,1583.0,1582.9,1.26373585]
[1744904781125,3.75065,1583.0,1582.9,5.85e-06]
[1744904783639,8.75065,1583.0,1582.9,5.85e-06]
[1744904786943,3.75065,1583.0,1582.9,5.85e-06]
[1744904787342,1.26413,1582.4,1582.3,0.8367]
[1744904787553,1.26429,1582.2,1582.1,2.605]
[1744904787741,1.26437,1582.1,1582.0,1.2654]
[1744904788044,2.90517,1582.1,1582.0,1.26545]
[1744904788553,1.6408,1582.1,1582.0,8.02225]
[1744904788747,3.21727598,1582.2,1582.1,1.26437]
[1744904788943,4.48156598,1582.2,1582.1,3.02117]
[1744904789250,4.48156598,1582.2,1582.1,8.02117]
[1744904789446,1.26437,1582.1,1582.0,1.26538]
[1744904789751,2.90517,1582.1,1582.0,1.26538]
[1744904790348,2.90517,1582.1,1582.0,0.001]
[1744904790546,3.71887,1582.1,1582.0,1.26545]
[1744904790746,3.71887,1582.1,1582.0,0.001]
[1744904795044,4.48161598,1582.2,1582.1,1.26437]
[1744904795250,4.48161598,1582.2,1582.1,3.69157]
[1744904795451,1.27381598,1582.2,1582.1,3.69157]
[1744904796053,0.00947598,1582.2,1582.1,8.69157]
[1744904796852,0.00947598,1582.2,1582.1,11.89937]
[1744904797450,1.27376598,1582.2,1582.1,11.89937]
[1744904797850,0.00947598,1582.2,1582.1,11.89937]
[1744904800047,0.00947598,1582.2,1582.1,16.56137]
[1744904800251,4.47186,1582.5,1582.4,1.26413]
[1744904800440,3.2078,1582.5,1582.4,1.26413]
[1744904801450,3.2078,1582.5,1582.4,6.26413]
[1744904803155,4.47185,1582.5,1582.4,5.92613]
[1744904803444,4.977,1582.5,1582.4,5.92613]
[1744904803650,0.00947598,1582.6,1582.5,1.26405]
[1744904803851,0.00947598,1582.6,1582.5,4.56675]
[1744904804354,4.0643,1583.0,1582.8,1.26376]
[1744904804551,1.7692,1583.0,1582.9,1.26373]
[1744904804758,4.977,1583.0,1582.9,1.26373]
[1744904805052,3.2078,1583.2,1583.1,1.26349]
[1744904805445,3.2078,1583.2,1583.1,6.26349]
[1744904805651,10.80472725,1583.5,1583.4,1.26333]
[1744904805846,9.54147725,1583.5,1583.4,1.26333]
[1744904806047,11.32077725,1583.5,1583.4,1.26333]
[1744904806249,11.32077725,1583.5,1583.4,3.03893]
[1744904806745,9.54147725,1583.5,1583.4,3.03893]
[1744904806945,3.2078,1583.5,1583.4,8.90713]
[1744904807253,7.59660725,1583.9,1583.7,1.26304]
[1744904807454,3.04236,1583.8,1583.6,4.661]
[1744904807656,7.59665725,1583.9,1583.8,1.26301]
[1744904807848,9.37595725,1583.9,1583.7,43.83864]
[1744904808248,1.7793,1583.8,1583.7,43.83864]
[1744904808448,1.7793,1583.8,1583.7,3.03864]
[1744904809048,3.04231,1583.8,1583.7,3.03864]
[1744904809253,3.04231,1583.8,1583.6,5.92411]
[1744904809453,1.7217,1583.7,1583.6,7.54271]
[1744904810656,7.59666725,1583.9,1583.7,1.26301]
[1744904810857,9.31836725,1583.9,1583.7,2.88161]
[1744904811066,2.98471,1583.8,1583.7,2.88161]
[1744904812061,1.7217,1583.8,1583.7,2.88161]
[1744904812853,0.0063173,1583.9,1583.8,1.26301]
[1744904813152,0.0063173,1583.9,1583.8,2.97831]
[1744904813958,0.0063173,1583.9,1583.8,3.80831]
[1744904815562,2.9071473,1583.9,1583.8,3.80831]
[1744904815962,1.6442173,1583.9,1583.8,3.80831]
[1744904816164,0.0063173,1583.9,1583.8,3.80831]
[1744904816662,3.15558,1584.8,1583.9,3.15733]
[1744904816863,1.6379,1584.6,1584.4,1.26247]
[1744904817062,1.26252,1584.5,1584.4,4.652]
[1744904817557,11.36394,1584.5,1584.1,4.47054]
[1744904817766,1.26267,1584.3,1584.2,1.26269]
[1744904817953,1.26267,1584.3,1584.1,4.4705]
[1744904818159,1.6714,1584.2,1584.1,4.47997598]
[1744904818865,1.6714,1584.2,1584.1,6.12617598]
[1744904819266,2.93409,1584.2,1584.1,3.21727598]
[1744904819471,6.14189,1584.2,1584.1,0.00947598]
[1744904819662,2.93409,1584.2,1584.1,0.00947598]
[1744904821465,2.93409,1584.2,1584.0,3.2088]
[1744904821466,1.26277,1584.1,1584.0,0.001]
[1744904821664,2.89307,1584.1,1584.0,0.001]
[1744904826272,1.6303,1584.1,1584.0,1.26385]
[1744904826668,1.6303,1584.1,1584.0,9.47165]
[1744904826868,0.00947598,1584.2,1584.1,1.26277]
[1744904827065,0.00947598,1584.2,1584.1,2.93127]
[1744904827269,0.00947598,1584.2,1584.1,7.93127]
[1744904827464,1.26248,1584.5,1584.4,1.26247]
[1744904827659,1.26253,1584.4,1584.3,6.79645]
[1744904828173,1.26253,1584.4,1584.3,4.65]
[1744904828378,1.26261,1584.3,1584.2,3.2078]
[1744904828567,3.03511,1584.3,1584.2,3.2078]
[1744904829067,3.03511,1584.3,1584.1,4.65]
[1744904829068,1.26269,1584.2,1584.1,4.65]
[1744904829269,1.26277,1584.1,1584.0,0.001]
[1744904829668,3.03527,1584.1,1584.0,0.001]
[1744904833485,3.03527,1584.1,1584.0,1.26385]
[1744904833981,1.7725,1584.1,1584.0,4.47165]
[1744904834278,1.26266,1584.3,1584.2,1.26266]
[1744904834480,2.99161,1584.3,1584.2,1.26266]
[1744904834667,1.729,1584.3,1584.1,1.26273]
[1744904834975,2.99169,1584.2,1584.0,16.2849]
[1744904835174,2.99177,1584.1,1584.0,12.60655]
[1744904835375,2.99177,1584.1,1584.0,0.001]
[1744904836179,2.99177,1584.1,1584.0,1.26385]
[1744904836386,2.99177,1584.1,1584.0,0.001]
[1744904837084,2.99177,1584.1,1584.0,1.26385]
[1744904837282,0.8863,1584.3,1584.2,1.26269]
[1744904837479,2.14899,1584.3,1584.2,1.26269]
[1744904837679,2.14891,1584.3,1584.2,1.26269]
[1744904838287,1.26269,1584.2,1584.1,2.97842]
[1744904838487,1.26269,1584.2,1584.0,5.27459]
[1744904838488,1.26277,1584.1,1584.0,5.27459]
[1744904838788,1.26277,1584.1,1584.0,0.001]
[1744904843288,1.26277,1584.1,1584.0,1.26385]
[1744904843491,1.7013,1584.2,1584.1,1.26277]
[1744904843794,2.96406,1584.2,1584.1,1.26277]
[1744904844290,2.96406,1584.2,1584.0,2.91769]
[1744904844291,1.26277,1584.1,1584.0,2.91769]
[1744904844491,3.00867,1584.1,1584.0,2.91769]
[1744904844987,3.00867,1584.1,1584.0,7.56175]
[1744904846296,3.00867,1584.1,1584.0,0.001]
[1744904846507,6.21647,1584.1,1584.0,0.001]
[1744904846791,3.00867,1584.1,1584.0,0.001]
[1744904847094,3.85967,1584.1,1584.0,0.001]
[1744904847592,7.06747,1584.1,1584.0,0.001]
[1744904848388,10.8047,1584.1,1583.9,0.00947598]
[1744904848693,1.26325,1583.5,1583.4,4.9858]
[1744904849087,1.26325,1583.5,1583.4,6.24913]
[1744904849291,1.26325,1583.5,1583.4,4.9858]
[1744904849488,1.26325,1583.5,1583.4,3.2078]
[1744904849794,1.26337,1583.4,1583.3,1.26337]
[1744904850091,1.26337,1583.4,1583.3,4.48064598]
[1744904850287,0.00947598,1583.6,1583.3,4.99527598]
[1744904850492,0.00947598,1583.6,1583.5,1.26325]
[1744904851294,0.00947598,1583.6,1583.5,11.72105]
[1744904851590,0.00947598,1583.6,1583.5,12.51525]
[1744904851989,0.00947598,1583.6,1583.5,15.72305]
[1744904853796,0.00947598,1583.6,1583.5,9.92885]
[1744904853986,1.64847598,1583.6,1583.5,9.92885]
[1744904854191,2.91164598,1583.6,1583.5,9.92885]
[1744904854390,2.91164598,1583.6,1583.5,8.6656]
[1744904854592,2.91164598,1583.6,1583.5,9.92885]
[1744904855698,2.91164598,1583.6,1583.5,8.6656]
[1744904855898,2.91164598,1583.6,1583.5,3.2078]
[1744904856296,1.26325,1583.5,1583.4,11.45940408]
[1744904856496,2.94025,1583.5,1583.4,11.45940408]
[1744904856798,2.94025,1583.5,1583.4,8.25160408]
[1744904858904,1.26333,1583.4,1583.3,0.00947598]
[1744904859200,4.62543,1583.4,1583.3,0.00947598]
[1744904859806,4.62543,1583.4,1583.3,1.27288598]
[1744904859997,4.62543,1583.4,1583.3,0.00947598]
[1744904860199,4.62543,1583.4,1583.3,1.27288598]
[1744904860901,4.62543,1583.4,1583.3,0.00947598]